[Event "Titled Tuesday Blitz May 2 Early 2023"]
[White "Filgueira, Hernan"]
[Black "Avazkhonov, Alikhon"]
[WhiteFideId "101770"]
[BlackFideId "14208504"]
[WhiteElo "2363"]
[BlackElo "1739"]
[Result "0-1"]
[Round "10"]
[TimeControl "180+2"]
[Date "2023.05.03"]
[WhiteClock "0:00:00"]
[BlackClock "0:00:00"]

1. c4 {[%clk 0:00:01]}  e5 {[%clk 0:00:01]} 2. Nc3 {[%clk 0:00:01]}  d6 {[%clk 0:00:01]} 3. Nf3 {[%clk 0:00:01]}  f5 {[%clk 0:00:01]} 4. d4 {[%clk 0:00:01]}  e4 {[%clk 0:00:01]} 5. Ng5 {[%clk 0:00:01]}  Nf6 {[%clk 0:00:01]} 6. g3 {[%clk 0:00:01]}  h6 {[%clk 0:00:01]} 7. Nh3 {[%clk 0:00:01]}  Be7 {[%clk 0:00:01]} 8. Bg2 {[%clk 0:00:01]}  O-O {[%clk 0:00:01]} 9. O-O {[%clk 0:00:01]}  Be6 {[%clk 0:00:01]} 10. b3 {[%clk 0:00:01]}  Bf7 {[%clk 0:00:01]} 11. f3 {[%clk 0:00:01]}  d5 {[%clk 0:00:01]} 12. c5 {[%clk 0:00:01]}  c6 {[%clk 0:00:01]} 13. Rb1 {[%clk 0:00:01]}  Nbd7 {[%clk 0:00:01]} 14. b4 {[%clk 0:00:01]}  a5 {[%clk 0:00:01]} 15. b5 {[%clk 0:00:01]}  Re8 {[%clk 0:00:01]} 16. bxc6 {[%clk 0:00:01]}  bxc6 {[%clk 0:00:01]} 17. Qa4 {[%clk 0:00:01]}  Qc8 {[%clk 0:00:01]} 18. Nf2 {[%clk 0:00:01]}  Nf8 {[%clk 0:00:00]} 19. Rb6 {[%clk 0:00:01]}  Ra6 {[%clk 0:00:00]} 20. Rb3 {[%clk 0:00:01]}  Ne6 {[%clk 0:00:00]} 21. Bh3 {[%clk 0:00:01]}  Ng5 {[%clk 0:00:00]} 22. Bg2 {[%clk 0:00:01]}  Ne6 {[%clk 0:00:00]} 23. Bd2 {[%clk 0:00:01]}  Bxc5 {[%clk 0:00:00]} 24. dxc5 {[%clk 0:00:01]}  Nxc5 {[%clk 0:00:00]} 25. Qa3 {[%clk 0:00:00]}  Nxb3 {[%clk 0:00:00]} 26. axb3 {[%clk 0:00:00]}  e3 {[%clk 0:00:00]} 27. Be1 {[%clk 0:00:00]}  exf2+ {[%clk 0:00:00]} 28. Bxf2 {[%clk 0:00:00]}  c5 {[%clk 0:00:00]} 29. Bxc5 {[%clk 0:00:00]}  Rc6 {[%clk 0:00:00]} 30. Na4 {[%clk 0:00:00]}  Rxe2 {[%clk 0:00:00]} 31. Rd1 {[%clk 0:00:00]}  Rc2 {[%clk 0:00:00]} 32. Be3 {[%clk 0:00:00]}  Qe6 {[%clk 0:00:00]} 33. Bf2 {[%clk 0:00:00]}  Qe2 {[%clk 0:00:00]} 34. Rf1 {[%clk 0:00:00]}  d4 {[%clk 0:00:00]} 35. Qe7 {[%clk 0:00:00]}  Qxe7 {[%clk 0:00:00]} 36. Bxd4 {[%clk 0:00:00]}  Qe2 {[%clk 0:00:00]} 37. Bf2 {[%clk 0:00:00]}  Bxb3 {[%clk 0:00:00]} 0-1


[Site "https://www.chess.com"]

[Event "Titled Tuesday Blitz May 2 Early 2023"]
[White "Arkell, Keith C"]
[Black "Djordjevic, Vuk"]
[WhiteFideId "400270"]
[BlackFideId "902098"]
[WhiteElo "2319"]
[BlackElo "2452"]
[Result "0-1"]
[Round "10"]
[TimeControl "180+2"]
[Date "2023.05.03"]
[WhiteClock "0:00:00"]
[BlackClock "0:00:00"]

1. d4 {[%clk 0:00:01]}  Nf6 {[%clk 0:00:01]} 2. Nf3 {[%clk 0:00:01]}  e6 {[%clk 0:00:01]} 3. c4 {[%clk 0:00:01]}  b6 {[%clk 0:00:01]} 4. g3 {[%clk 0:00:01]}  Ba6 {[%clk 0:00:01]} 5. b3 {[%clk 0:00:01]}  Bb4+ {[%clk 0:00:01]} 6. Bd2 {[%clk 0:00:01]}  Be7 {[%clk 0:00:01]} 7. Bc3 {[%clk 0:00:01]}  d5 {[%clk 0:00:01]} 8. Bg2 {[%clk 0:00:01]}  c6 {[%clk 0:00:01]} 9. Nbd2 {[%clk 0:00:01]}  Nbd7 {[%clk 0:00:01]} 10. O-O {[%clk 0:00:01]}  O-O {[%clk 0:00:01]} 11. Re1 {[%clk 0:00:01]}  Rc8 {[%clk 0:00:01]} 12. e4 {[%clk 0:00:01]}  dxe4 {[%clk 0:00:01]} 13. Nxe4 {[%clk 0:00:01]}  Nxe4 {[%clk 0:00:01]} 14. Rxe4 {[%clk 0:00:01]}  Nf6 {[%clk 0:00:01]} 15. Re1 {[%clk 0:00:01]}  Bb7 {[%clk 0:00:01]} 16. Ne5 {[%clk 0:00:01]}  Qc7 {[%clk 0:00:01]} 17. Qf3 {[%clk 0:00:01]}  Rfd8 {[%clk 0:00:01]} 18. Rac1 {[%clk 0:00:01]}  h6 {[%clk 0:00:01]} 19. c5 {[%clk 0:00:01]}  bxc5 {[%clk 0:00:01]} 20. dxc5 {[%clk 0:00:01]}  Rd5 {[%clk 0:00:01]} 21. b4 {[%clk 0:00:01]}  Bf8 {[%clk 0:00:01]} 22. Nc4 {[%clk 0:00:01]}  Rf5 {[%clk 0:00:01]} 23. Qe2 {[%clk 0:00:01]}  Ba6 {[%clk 0:00:01]} 24. Be5 {[%clk 0:00:00]}  Qd8 {[%clk 0:00:01]} 25. Qb2 {[%clk 0:00:00]}  Bxc4 {[%clk 0:00:01]} 26. Rxc4 {[%clk 0:00:00]}  Qd3 {[%clk 0:00:01]} 27. Rd4 {[%clk 0:00:00]}  Qb5 {[%clk 0:00:01]} 28. Rd2 {[%clk 0:00:00]}  a5 {[%clk 0:00:00]} 29. a3 {[%clk 0:00:00]}  axb4 {[%clk 0:00:00]} 30. axb4 {[%clk 0:00:00]}  Nd5 {[%clk 0:00:00]} 31. Bxd5 {[%clk 0:00:00]}  exd5 {[%clk 0:00:00]} 32. Bd6 {[%clk 0:00:00]}  Bxd6 {[%clk 0:00:00]} 33. cxd6 {[%clk 0:00:00]}  Rd8 {[%clk 0:00:00]} 34. Rde2 {[%clk 0:00:00]}  Rxd6 {[%clk 0:00:00]} 35. Re8+ {[%clk 0:00:00]}  Kh7 {[%clk 0:00:00]} 36. Qc2 {[%clk 0:00:00]}  d4 {[%clk 0:00:00]} 37. Qe4 {[%clk 0:00:00]}  Qd5 {[%clk 0:00:00]} 38. Qd3 {[%clk 0:00:00]}  Qf3 {[%clk 0:00:00]} 39. Qd2 {[%clk 0:00:00]}  d3 {[%clk 0:00:00]} 40. R1e3 {[%clk 0:00:00]}  Qd5 {[%clk 0:00:00]} 41. Ra8 {[%clk 0:00:00]}  Qd4 {[%clk 0:00:00]} 42. Ra3 {[%clk 0:00:00]}  Rfd5 {[%clk 0:00:00]} 43. Kg2 {[%clk 0:00:00]}  g6 {[%clk 0:00:00]} 44. h4 {[%clk 0:00:00]}  Qc4 {[%clk 0:00:00]} 45. Ra7 {[%clk 0:00:00]}  Rd4 {[%clk 0:00:00]} 46. Rf3 {[%clk 0:00:00]}  Rd7 {[%clk 0:00:00]} 47. Rxd7 {[%clk 0:00:00]}  Rxd7 {[%clk 0:00:00]} 48. Rf4 {[%clk 0:00:00]}  Qd5+ {[%clk 0:00:00]} 49. Kg1 {[%clk 0:00:00]}  Ra7 {[%clk 0:00:00]} 50. Kh2 {[%clk 0:00:00]}  Ra1 {[%clk 0:00:00]} 51. f3 {[%clk 0:00:00]}  Ra2 {[%clk 0:00:00]} 52. Rxf7+ {[%clk 0:00:00]}  Qxf7 {[%clk 0:00:00]} 0-1


[Site "https://www.chess.com"]

[Event "Titled Tuesday Blitz May 2 Early 2023"]
[White "Liu, Xiangyi"]
[Black "Karttunen, Mika"]
[WhiteFideId "8605718"]
[BlackFideId "502081"]
[WhiteElo "2323"]
[BlackElo "2396"]
[Result "1-0"]
[Round "10"]
[TimeControl "180+2"]
[Date "2023.05.03"]
[WhiteClock "0:00:00"]
[BlackClock "0:00:00"]

1. e4 {[%clk 0:00:01]}  e6 {[%clk 0:00:01]} 2. Nf3 {[%clk 0:00:01]}  d5 {[%clk 0:00:01]} 3. e5 {[%clk 0:00:01]}  Bd7 {[%clk 0:00:01]} 4. g3 {[%clk 0:00:01]}  a6 {[%clk 0:00:01]} 5. Bg2 {[%clk 0:00:01]}  c5 {[%clk 0:00:01]} 6. O-O {[%clk 0:00:01]}  Nc6 {[%clk 0:00:01]} 7. d3 {[%clk 0:00:01]}  Nge7 {[%clk 0:00:01]} 8. h4 {[%clk 0:00:01]}  Nf5 {[%clk 0:00:01]} 9. c3 {[%clk 0:00:01]}  h6 {[%clk 0:00:01]} 10. h5 {[%clk 0:00:01]}  Be7 {[%clk 0:00:01]} 11. Nbd2 {[%clk 0:00:01]}  g6 {[%clk 0:00:01]} 12. hxg6 {[%clk 0:00:01]}  fxg6 {[%clk 0:00:01]} 13. g4 {[%clk 0:00:01]}  Ng7 {[%clk 0:00:01]} 14. Re1 {[%clk 0:00:01]}  h5 {[%clk 0:00:01]} 15. g5 {[%clk 0:00:01]}  Nf5 {[%clk 0:00:01]} 16. Nf1 {[%clk 0:00:01]}  h4 {[%clk 0:00:01]} 17. Bh3 {[%clk 0:00:01]}  Qc7 {[%clk 0:00:01]} 18. N1h2 {[%clk 0:00:01]}  O-O-O {[%clk 0:00:01]} 19. Ng4 {[%clk 0:00:01]}  Kb8 {[%clk 0:00:01]} 20. Bf4 {[%clk 0:00:00]}  Ka8 {[%clk 0:00:00]} 21. Qd2 {[%clk 0:00:00]}  d4 {[%clk 0:00:00]} 22. c4 {[%clk 0:00:00]}  Bc8 {[%clk 0:00:00]} 23. Nf6 {[%clk 0:00:00]}  b6 {[%clk 0:00:00]} 24. Kh2 {[%clk 0:00:00]}  Bb7 {[%clk 0:00:00]} 25. Ng1 {[%clk 0:00:00]}  Na5 {[%clk 0:00:00]} 26. f3 {[%clk 0:00:00]}  Rc8 {[%clk 0:00:00]} 27. b3 {[%clk 0:00:00]}  Nc6 {[%clk 0:00:00]} 28. Bxf5 {[%clk 0:00:00]}  gxf5 {[%clk 0:00:00]} 29. Nh3 {[%clk 0:00:00]}  Nd8 {[%clk 0:00:00]} 30. Rf1 {[%clk 0:00:00]}  Nf7 {[%clk 0:00:00]} 31. Rae1 {[%clk 0:00:00]}  Bxf6 {[%clk 0:00:00]} 32. exf6 {[%clk 0:00:00]}  e5 {[%clk 0:00:00]} 33. g6 {[%clk 0:00:00]}  exf4 {[%clk 0:00:00]} 34. Re7 {[%clk 0:00:00]}  Qd6 {[%clk 0:00:00]} 35. Rxf7 {[%clk 0:00:00]}  Rce8 {[%clk 0:00:00]} 36. g7 {[%clk 0:00:00]}  Rhg8 {[%clk 0:00:00]} 37. Qxf4 {[%clk 0:00:00]}  Re2+ {[%clk 0:00:00]} 38. Kg1 {[%clk 0:00:00]}  Qe6 {[%clk 0:00:00]} 39. Rf8+ {[%clk 0:00:00]}  Bc8 {[%clk 0:00:00]} 40. Ng5 {[%clk 0:00:00]}  Rxg7 {[%clk 0:00:00]} 41. fxg7 {[%clk 0:00:00]}  Qg6 {[%clk 0:00:00]} 42. g8=Q {[%clk 0:00:00]} 1-0


[Site "https://www.chess.com"]

[Event "Titled Tuesday Blitz May 2 Early 2023"]
[White "Pujari, Rucha"]
[Black "Gritsenko, Nikolai"]
[WhiteFideId "5024528"]
[BlackFideId "14112493"]
[WhiteElo "2129"]
[BlackElo "2389"]
[Result "0-1"]
[Round "10"]
[TimeControl "180+2"]
[Date "2023.05.03"]
[WhiteClock "0:00:00"]
[BlackClock "0:00:00"]

1. d4 {[%clk 0:00:01]}  d5 {[%clk 0:00:01]} 2. c4 {[%clk 0:00:01]}  Nc6 {[%clk 0:00:01]} 3. e3 {[%clk 0:00:01]}  e6 {[%clk 0:00:01]} 4. Nf3 {[%clk 0:00:01]}  Nf6 {[%clk 0:00:01]} 5. a3 {[%clk 0:00:01]}  a6 {[%clk 0:00:01]} 6. Nc3 {[%clk 0:00:01]}  Bd6 {[%clk 0:00:01]} 7. Qc2 {[%clk 0:00:01]}  dxc4 {[%clk 0:00:01]} 8. Bxc4 {[%clk 0:00:01]}  O-O {[%clk 0:00:01]} 9. O-O {[%clk 0:00:01]}  e5 {[%clk 0:00:01]} 10. dxe5 {[%clk 0:00:01]}  Nxe5 {[%clk 0:00:01]} 11. Nxe5 {[%clk 0:00:01]}  Bxe5 {[%clk 0:00:01]} 12. h3 {[%clk 0:00:01]}  Qe7 {[%clk 0:00:01]} 13. b4 {[%clk 0:00:01]}  b5 {[%clk 0:00:01]} 14. Bd3 {[%clk 0:00:00]}  Bb7 {[%clk 0:00:01]} 15. Bb2 {[%clk 0:00:00]}  c5 {[%clk 0:00:01]} 16. Ne2 {[%clk 0:00:00]}  Rac8 {[%clk 0:00:01]} 17. Bxe5 {[%clk 0:00:00]}  Qxe5 {[%clk 0:00:01]} 18. bxc5 {[%clk 0:00:00]}  Rxc5 {[%clk 0:00:01]} 19. Qb3 {[%clk 0:00:00]}  Qg5 {[%clk 0:00:01]} 20. Ng3 {[%clk 0:00:00]}  h5 {[%clk 0:00:00]} 21. e4 {[%clk 0:00:00]}  h4 {[%clk 0:00:00]} 22. Nf5 {[%clk 0:00:00]}  Rxf5 {[%clk 0:00:00]} 23. f4 {[%clk 0:00:00]}  Rxf4 {[%clk 0:00:00]} 0-1


[Site "https://www.chess.com"]

[Event "Titled Tuesday Blitz May 2 Early 2023"]
[White "Shvedova, Alexandra"]
[Black "Florescu, Codrut-Constantin"]
[WhiteFideId "54154782"]
[BlackFideId "1202200"]
[WhiteElo "2057"]
[BlackElo "2191"]
[Result "1/2-1/2"]
[Round "10"]
[TimeControl "180+2"]
[Date "2023.05.03"]
[WhiteClock "0:00:00"]
[BlackClock "0:00:00"]

1. e4 {[%clk 0:00:01]}  c5 {[%clk 0:00:01]} 2. Ne2 {[%clk 0:00:01]}  e6 {[%clk 0:00:01]} 3. d4 {[%clk 0:00:01]}  cxd4 {[%clk 0:00:01]} 4. Nxd4 {[%clk 0:00:01]}  a6 {[%clk 0:00:01]} 5. c4 {[%clk 0:00:01]}  Nf6 {[%clk 0:00:01]} 6. Nc3 {[%clk 0:00:01]}  Bb4 {[%clk 0:00:01]} 7. Qd3 {[%clk 0:00:01]}  O-O {[%clk 0:00:01]} 8. a3 {[%clk 0:00:01]}  Bxc3+ {[%clk 0:00:01]} 9. bxc3 {[%clk 0:00:01]}  d5 {[%clk 0:00:01]} 10. exd5 {[%clk 0:00:01]}  exd5 {[%clk 0:00:01]} 11. Be2 {[%clk 0:00:01]}  dxc4 {[%clk 0:00:01]} 12. Qxc4 {[%clk 0:00:01]}  b5 {[%clk 0:00:01]} 13. Qa2 {[%clk 0:00:01]}  Bb7 {[%clk 0:00:01]} 14. O-O {[%clk 0:00:01]}  Nbd7 {[%clk 0:00:01]} 15. Bg5 {[%clk 0:00:01]}  Qc7 {[%clk 0:00:01]} 16. Rac1 {[%clk 0:00:01]}  Ne5 {[%clk 0:00:01]} 17. Bxf6 {[%clk 0:00:01]}  gxf6 {[%clk 0:00:01]} 18. Qd2 {[%clk 0:00:01]}  Kh8 {[%clk 0:00:01]} 19. Qf4 {[%clk 0:00:01]}  Qb6 {[%clk 0:00:01]} 20. Nf5 {[%clk 0:00:00]}  Rg8 {[%clk 0:00:01]} 21. Ng3 {[%clk 0:00:00]}  Rg6 {[%clk 0:00:01]} 22. Rfd1 {[%clk 0:00:00]}  Rag8 {[%clk 0:00:01]} 23. Bf1 {[%clk 0:00:00]}  Rg4 {[%clk 0:00:01]} 24. Qd2 {[%clk 0:00:00]}  Ra4 {[%clk 0:00:00]} 25. Qd6 {[%clk 0:00:00]}  Qxd6 {[%clk 0:00:00]} 26. Rxd6 {[%clk 0:00:00]}  Rxa3 {[%clk 0:00:00]} 27. Rxf6 {[%clk 0:00:00]}  Rc8 {[%clk 0:00:00]} 28. Re1 {[%clk 0:00:00]}  Ng6 {[%clk 0:00:00]} 29. Rxf7 {[%clk 0:00:00]}  Bd5 {[%clk 0:00:00]} 30. Rd7 {[%clk 0:00:00]}  Ba2 {[%clk 0:00:00]} 31. Nh5 {[%clk 0:00:00]}  Rf8 {[%clk 0:00:00]} 32. Rc7 {[%clk 0:00:00]}  Bg8 {[%clk 0:00:00]} 33. Rd1 {[%clk 0:00:00]}  Ra2 {[%clk 0:00:00]} 34. f3 {[%clk 0:00:00]}  a5 {[%clk 0:00:00]} 35. Rdd7 {[%clk 0:00:00]}  a4 {[%clk 0:00:00]} 36. Ra7 {[%clk 0:00:00]}  a3 {[%clk 0:00:00]} 37. Bxb5 {[%clk 0:00:00]}  Nh4 {[%clk 0:00:00]} 38. Bd3 {[%clk 0:00:00]}  Rxg2+ {[%clk 0:00:00]} 39. Kh1 {[%clk 0:00:00]}  Rd2 {[%clk 0:00:00]} 40. Rxh7+ {[%clk 0:00:00]}  Bxh7 {[%clk 0:00:00]} 41. Rxh7+ {[%clk 0:00:00]}  Kg8 {[%clk 0:00:00]} 42. Rg7+ {[%clk 0:00:00]}  Kh8 {[%clk 0:00:00]} 43. Rh7+ {[%clk 0:00:00]}  Kg8 {[%clk 0:00:00]} 44. Rg7+ {[%clk 0:00:00]}  Kh8 {[%clk 0:00:00]} 45. Rh7+ {[%clk 0:00:00]} 1/2-1/2


[Site "https://www.chess.com"]

[Event "Titled Tuesday Blitz May 2 Early 2023"]
[White "Srebrnic, Marko"]
[Black "Dronavalli, Harika"]
[WhiteFideId "14603616"]
[BlackFideId "5015197"]
[WhiteElo "2341"]
[BlackElo "2432"]
[Result "1/2-1/2"]
[Round "10"]
[TimeControl "180+2"]
[Date "2023.05.03"]
[WhiteClock "0:00:00"]
[BlackClock "0:00:00"]

1. e4 {[%clk 0:00:01]}  Nc6 {[%clk 0:00:01]} 2. g3 {[%clk 0:00:01]}  e5 {[%clk 0:00:01]} 3. Bg2 {[%clk 0:00:01]}  Bc5 {[%clk 0:00:01]} 4. Ne2 {[%clk 0:00:01]}  d6 {[%clk 0:00:01]} 5. O-O {[%clk 0:00:01]}  h5 {[%clk 0:00:01]} 6. c3 {[%clk 0:00:01]}  h4 {[%clk 0:00:01]} 7. d4 {[%clk 0:00:01]}  Bb6 {[%clk 0:00:01]} 8. Na3 {[%clk 0:00:01]}  hxg3 {[%clk 0:00:01]} 9. fxg3 {[%clk 0:00:01]}  Bg4 {[%clk 0:00:01]} 10. Be3 {[%clk 0:00:01]}  Qd7 {[%clk 0:00:01]} 11. Nc4 {[%clk 0:00:01]}  Bh3 {[%clk 0:00:01]} 12. Nxb6 {[%clk 0:00:01]}  axb6 {[%clk 0:00:01]} 13. Rf2 {[%clk 0:00:01]}  Nf6 {[%clk 0:00:01]} 14. dxe5 {[%clk 0:00:00]}  Nxe5 {[%clk 0:00:01]} 15. Nf4 {[%clk 0:00:00]}  Bxg2 {[%clk 0:00:01]} 16. Rxg2 {[%clk 0:00:00]}  Qg4 {[%clk 0:00:01]} 17. Qxg4 {[%clk 0:00:00]}  Nfxg4 {[%clk 0:00:01]} 18. Bd4 {[%clk 0:00:00]}  Nf3+ {[%clk 0:00:01]} 19. Kf1 {[%clk 0:00:00]}  c5 {[%clk 0:00:01]} 20. Bxg7 {[%clk 0:00:00]}  Rh7 {[%clk 0:00:01]} 21. Ke2 {[%clk 0:00:00]}  Nfxh2 {[%clk 0:00:01]} 22. Nd5 {[%clk 0:00:00]}  O-O-O {[%clk 0:00:00]} 23. Bf6 {[%clk 0:00:00]}  Re8 {[%clk 0:00:00]} 24. Rh1 {[%clk 0:00:00]}  Rh5 {[%clk 0:00:00]} 25. Nf4 {[%clk 0:00:00]}  Rf5 {[%clk 0:00:00]} 26. Kd3 {[%clk 0:00:00]}  Rxf6 {[%clk 0:00:00]} 27. Rgxh2 {[%clk 0:00:00]}  Nxh2 {[%clk 0:00:00]} 28. Rxh2 {[%clk 0:00:00]}  Rg8 {[%clk 0:00:00]} 29. Rh3 {[%clk 0:00:00]}  b5 {[%clk 0:00:00]} 30. Ke3 {[%clk 0:00:00]}  Re8 {[%clk 0:00:00]} 31. Kf3 {[%clk 0:00:00]}  Kd7 {[%clk 0:00:00]} 32. Rh7 {[%clk 0:00:00]}  Kc6 {[%clk 0:00:00]} 33. g4 {[%clk 0:00:00]}  Re5 {[%clk 0:00:00]} 34. Rg7 {[%clk 0:00:00]}  d5 {[%clk 0:00:00]} 35. exd5+ {[%clk 0:00:00]}  Rxd5 {[%clk 0:00:00]} 36. Ke4 {[%clk 0:00:00]}  Rd2 {[%clk 0:00:00]} 37. g5 {[%clk 0:00:00]}  Rfd6 {[%clk 0:00:00]} 38. Rxf7 {[%clk 0:00:00]}  Rxb2 {[%clk 0:00:00]} 39. g6 {[%clk 0:00:00]}  Rb1 {[%clk 0:00:00]} 40. g7 {[%clk 0:00:00]}  Rg1 {[%clk 0:00:00]} 41. Kf5 {[%clk 0:00:00]}  Rd5+ {[%clk 0:00:00]} 42. Nxd5 {[%clk 0:00:00]}  Kxd5 {[%clk 0:00:00]} 43. Rxb7 {[%clk 0:00:00]}  Kc4 {[%clk 0:00:00]} 44. Rc7 {[%clk 0:00:00]}  Kxc3 {[%clk 0:00:00]} 45. Rxc5+ {[%clk 0:00:00]}  Kb4 {[%clk 0:00:00]} 46. Rc7 {[%clk 0:00:00]}  Ka3 {[%clk 0:00:00]} 47. Ra7+ {[%clk 0:00:00]}  Kb2 {[%clk 0:00:00]} 48. Kf6 {[%clk 0:00:00]}  b4 {[%clk 0:00:00]} 49. Kf7 {[%clk 0:00:00]}  Rf1+ {[%clk 0:00:00]} 50. Kg8 {[%clk 0:00:00]}  Rg1 {[%clk 0:00:00]} 51. Rf7 {[%clk 0:00:00]}  Kxa2 {[%clk 0:00:00]} 52. Kf8 {[%clk 0:00:00]}  b3 {[%clk 0:00:00]} 53. Ra7+ {[%clk 0:00:00]}  Kb1 {[%clk 0:00:00]} 54. g8=Q {[%clk 0:00:00]}  Rxg8+ {[%clk 0:00:00]} 55. Kxg8 {[%clk 0:00:00]}  b2 {[%clk 0:00:00]} 56. Rc7 {[%clk 0:00:00]}  Ka2 {[%clk 0:00:00]} 57. Ra7+ {[%clk 0:00:00]}  Kb3 {[%clk 0:00:00]} 58. Rb7+ {[%clk 0:00:00]}  Kc2 {[%clk 0:00:00]} 59. Rxb2+ {[%clk 0:00:00]}  Kxb2 {[%clk 0:00:00]} 1/2-1/2


[Site "https://www.chess.com"]

[Event "Titled Tuesday Blitz May 2 Early 2023"]
[White "Ljukin, Sergei"]
[Black "Souleidis, Georgios"]
[WhiteFideId "14102200"]
[BlackFideId "4206827"]
[WhiteElo "2312"]
[BlackElo "2401"]
[Result "0-1"]
[Round "10"]
[TimeControl "180+2"]
[Date "2023.05.03"]
[WhiteClock "0:00:00"]
[BlackClock "0:00:00"]

1. e4 {[%clk 0:00:01]}  c5 {[%clk 0:00:01]} 2. Nf3 {[%clk 0:00:01]}  e6 {[%clk 0:00:01]} 3. d4 {[%clk 0:00:01]}  cxd4 {[%clk 0:00:01]} 4. Nxd4 {[%clk 0:00:01]}  Nf6 {[%clk 0:00:01]} 5. Nc3 {[%clk 0:00:01]}  Nc6 {[%clk 0:00:01]} 6. Nxc6 {[%clk 0:00:01]}  bxc6 {[%clk 0:00:01]} 7. e5 {[%clk 0:00:01]}  Nd5 {[%clk 0:00:01]} 8. Ne4 {[%clk 0:00:01]}  Qc7 {[%clk 0:00:01]} 9. f4 {[%clk 0:00:01]}  Qb6 {[%clk 0:00:01]} 10. c4 {[%clk 0:00:01]}  Ne3 {[%clk 0:00:01]} 11. Qd3 {[%clk 0:00:01]}  Bb4+ {[%clk 0:00:01]} 12. Ke2 {[%clk 0:00:01]}  Nxc4 {[%clk 0:00:01]} 13. Kf3 {[%clk 0:00:01]}  Ba6 {[%clk 0:00:01]} 14. Qb3 {[%clk 0:00:01]}  Na5 {[%clk 0:00:00]} 15. Qa4 {[%clk 0:00:01]}  Bxf1 {[%clk 0:00:00]} 16. Rxf1 {[%clk 0:00:01]}  O-O {[%clk 0:00:00]} 17. Be3 {[%clk 0:00:01]}  Qb5 {[%clk 0:00:00]} 18. Qxb5 {[%clk 0:00:01]}  cxb5 {[%clk 0:00:00]} 19. Rfd1 {[%clk 0:00:01]}  f5 {[%clk 0:00:00]} 20. exf6 {[%clk 0:00:00]}  d5 {[%clk 0:00:00]} 21. Ng5 {[%clk 0:00:00]}  Rxf6 {[%clk 0:00:00]} 22. Bd4 {[%clk 0:00:00]}  Rg6 {[%clk 0:00:00]} 23. h4 {[%clk 0:00:00]}  Nc6 {[%clk 0:00:00]} 24. Rac1 {[%clk 0:00:00]}  Nxd4+ {[%clk 0:00:00]} 25. Rxd4 {[%clk 0:00:00]}  h6 {[%clk 0:00:00]} 26. Rxb4 {[%clk 0:00:00]}  hxg5 {[%clk 0:00:00]} 27. hxg5 {[%clk 0:00:00]}  Rf8 {[%clk 0:00:00]} 28. Kg4 {[%clk 0:00:00]}  a6 {[%clk 0:00:00]} 29. g3 {[%clk 0:00:00]}  e5 {[%clk 0:00:00]} 30. f5 {[%clk 0:00:00]}  Rd6 {[%clk 0:00:00]} 31. g6 {[%clk 0:00:00]}  d4 {[%clk 0:00:00]} 32. Re1 {[%clk 0:00:00]}  d3 {[%clk 0:00:00]} 33. Rbe4 {[%clk 0:00:00]}  d2 {[%clk 0:00:00]} 34. Rd1 {[%clk 0:00:00]}  Re8 {[%clk 0:00:00]} 35. Re2 {[%clk 0:00:00]}  Rd4+ {[%clk 0:00:00]} 36. Kg5 {[%clk 0:00:00]}  Red8 {[%clk 0:00:00]} 37. Rxe5 {[%clk 0:00:00]}  Kf8 {[%clk 0:00:00]} 38. Re2 {[%clk 0:00:00]}  b4 {[%clk 0:00:00]} 39. Rh1 {[%clk 0:00:00]}  Kg8 {[%clk 0:00:00]} 40. Rd1 {[%clk 0:00:00]}  Kf8 {[%clk 0:00:00]} 41. g4 {[%clk 0:00:00]}  a5 {[%clk 0:00:00]} 42. b3 {[%clk 0:00:00]}  R8d7 {[%clk 0:00:00]} 43. Kh5 {[%clk 0:00:00]}  Rd8 {[%clk 0:00:00]} 44. Kh4 {[%clk 0:00:00]}  Rd3 {[%clk 0:00:00]} 0-1


[Site "https://www.chess.com"]

[Event "Titled Tuesday Blitz May 2 Early 2023"]
[White "Orlov, Georgi"]
[Black "Womacka, Mathias"]
[WhiteFideId "2011271"]
[BlackFideId "4611390"]
[WhiteElo "2453"]
[BlackElo "2377"]
[Result "1/2-1/2"]
[Round "10"]
[TimeControl "180+2"]
[Date "2023.05.03"]
[WhiteClock "0:00:00"]
[BlackClock "0:00:00"]

1. d4 {[%clk 0:00:01]}  Nf6 {[%clk 0:00:01]} 2. Nf3 {[%clk 0:00:01]}  e6 {[%clk 0:00:01]} 3. c4 {[%clk 0:00:01]}  Bb4+ {[%clk 0:00:01]} 4. Bd2 {[%clk 0:00:01]}  Qe7 {[%clk 0:00:01]} 5. Nc3 {[%clk 0:00:01]}  b6 {[%clk 0:00:01]} 6. Qc2 {[%clk 0:00:01]}  Bb7 {[%clk 0:00:01]} 7. O-O-O {[%clk 0:00:01]}  O-O {[%clk 0:00:01]} 8. Rg1 {[%clk 0:00:01]}  c5 {[%clk 0:00:01]} 9. dxc5 {[%clk 0:00:01]}  Bxc5 {[%clk 0:00:01]} 10. e3 {[%clk 0:00:01]}  d5 {[%clk 0:00:01]} 11. Kb1 {[%clk 0:00:01]}  Nbd7 {[%clk 0:00:01]} 12. cxd5 {[%clk 0:00:01]}  Nxd5 {[%clk 0:00:01]} 13. Nxd5 {[%clk 0:00:01]}  Bxd5 {[%clk 0:00:01]} 14. Bc4 {[%clk 0:00:01]}  Nf6 {[%clk 0:00:01]} 15. Bxd5 {[%clk 0:00:01]}  Nxd5 {[%clk 0:00:01]} 16. e4 {[%clk 0:00:01]}  Nb4 {[%clk 0:00:01]} 17. Bxb4 {[%clk 0:00:01]}  Bxb4 {[%clk 0:00:01]} 18. Ne5 {[%clk 0:00:01]}  Rac8 {[%clk 0:00:00]} 19. Qb3 {[%clk 0:00:01]}  Bc5 {[%clk 0:00:00]} 20. Rd2 {[%clk 0:00:00]}  Rfd8 {[%clk 0:00:00]} 21. Rxd8+ {[%clk 0:00:00]}  Qxd8 {[%clk 0:00:00]} 22. Rd1 {[%clk 0:00:00]}  Qf6 {[%clk 0:00:00]} 23. Ng4 {[%clk 0:00:00]}  Qf4 {[%clk 0:00:00]} 24. Qf3 {[%clk 0:00:00]}  Qxf3 {[%clk 0:00:00]} 25. gxf3 {[%clk 0:00:00]}  h5 {[%clk 0:00:00]} 26. Ne3 {[%clk 0:00:00]}  Rc7 {[%clk 0:00:00]} 27. a3 {[%clk 0:00:00]}  g6 {[%clk 0:00:00]} 28. Rd2 {[%clk 0:00:00]}  Kg7 {[%clk 0:00:00]} 29. Nc2 {[%clk 0:00:00]}  Kf6 {[%clk 0:00:00]} 30. b4 {[%clk 0:00:00]}  Bf8 {[%clk 0:00:00]} 31. Rd8 {[%clk 0:00:00]}  Bh6 {[%clk 0:00:00]} 32. Kb2 {[%clk 0:00:00]}  Ke5 {[%clk 0:00:00]} 33. Rd3 {[%clk 0:00:00]}  Bf4 {[%clk 0:00:00]} 34. h3 {[%clk 0:00:00]}  Bh2 {[%clk 0:00:00]} 35. Nd4 {[%clk 0:00:00]}  Bg1 {[%clk 0:00:00]} 36. Nb5 {[%clk 0:00:00]}  Re7 {[%clk 0:00:00]} 37. Rd2 {[%clk 0:00:00]}  Kf4 {[%clk 0:00:00]} 38. Nd4 {[%clk 0:00:00]}  Bh2 {[%clk 0:00:00]} 39. Rd3 {[%clk 0:00:00]}  Rc7 {[%clk 0:00:00]} 40. Ne2+ {[%clk 0:00:00]}  Ke5 {[%clk 0:00:00]} 41. Rc3 {[%clk 0:00:00]}  Rxc3 {[%clk 0:00:00]} 42. Kxc3 {[%clk 0:00:00]}  b5 {[%clk 0:00:00]} 43. Kd3 {[%clk 0:00:00]}  g5 {[%clk 0:00:00]} 44. Ke3 {[%clk 0:00:00]}  Bf4+ {[%clk 0:00:00]} 45. Nxf4 {[%clk 0:00:00]}  gxf4+ {[%clk 0:00:00]} 46. Kd3 {[%clk 0:00:00]}  f6 {[%clk 0:00:00]} 47. h4 {[%clk 0:00:00]}  Kd6 {[%clk 0:00:00]} 48. Kd4 {[%clk 0:00:00]}  e5+ {[%clk 0:00:00]} 49. Kd3 {[%clk 0:00:00]}  a6 {[%clk 0:00:00]} 50. Kc3 {[%clk 0:00:00]}  Kc6 {[%clk 0:00:00]} 51. Kd3 {[%clk 0:00:00]}  Kd6 {[%clk 0:00:00]} 52. Kc3 {[%clk 0:00:00]}  Kc6 {[%clk 0:00:00]} 53. Kd3 {[%clk 0:00:00]}  Kd6 {[%clk 0:00:00]} 1/2-1/2


[Site "https://www.chess.com"]